bitfinex/quotes_SOLUSD_20240621
["timestamp","ask_amount","ask_price","bid_price","bid_amount"]
[1719005893435,9.57,132.51,132.43,15.3531]
[1719005893624,9.57,132.48,132.45,6.0396]
[1719005894018,9.57,132.48,132.46,6.0395]
[1719005894410,9.57,132.49,132.43,40.0244]
[1719005894711,9.57,132.49,132.46,6.0393]
[1719005897638,9.57,132.5,132.47,6.0388]
[1719005899516,9.57,132.49,132.47,6.0388]
[1719005899916,9.57,132.5,132.47,6.0388]
[1719005902722,9.57,132.5,132.48,6.0385]
[1719005903216,9.57,132.5,132.45,0.17]
[1719005903421,9.57,132.49,132.47,6.0389]
[1719005905118,9.57,132.5,132.47,6.0389]
[1719005905730,9.57,132.5,132.48,6.0385]
[1719005906545,6.037,132.52,132.48,6.0385]
[1719005907029,9.57,132.5,132.48,6.0385]
[1719005908734,9.57,132.5,132.47,6.0388]
[1719005910031,9.57,132.51,132.46,15.0988]
[1719005910222,9.57,132.51,132.48,6.0383]
[1719005911720,9.57,132.51,132.49,6.0381]
[1719005912133,6.0366,132.53,132.49,6.0381]
[1719005912443,9.57,132.51,132.49,6.0381]
[1719005912647,6.0356,132.55,132.5,6.2077]
[1719005912836,9.57,132.54,132.5,6.2077]
[1719005913424,9.57,132.54,132.5,0.17]
[1719005913721,9.57,132.54,132.49,0.17]
[1719005913722,9.57,132.54,132.51,6.037]
[1719005913929,9.57,132.53,132.51,6.037]
[1719005914131,6.0351,132.56,132.51,6.037]
[1719005914334,9.57,132.53,132.51,6.037]
[1719005914541,9.57,132.53,132.52,0.17]
[1719005914937,6.0355,132.55,132.52,0.17]
[1719005915155,9.57,132.54,132.52,0.17]
[1719005918135,9.57,132.54,132.52,6.3766]
[1719005918342,53.3654,132.58,132.53,0.17]
[1719005918343,9.57,132.55,132.53,0.17]
[1719005923266,21.573,132.62,132.54,6.0359]
[1719005923470,21.573,132.62,132.55,0.34]
[1719005923471,9.57,132.57,132.55,0.34]
[1719005923641,6.0341,132.58,132.55,0.17]
[1719005923642,9.57,132.58,132.55,0.17]
[1719005923839,6.0314,132.64,132.59,6.0335]
[1719005924037,9.57,132.62,132.59,6.0335]
[1719005924263,9.57,132.62,132.58,6.3739]
[1719005924461,9.57,132.62,132.59,6.0335]
[1719005925174,9.57,132.62,132.6,0.17]
[1719005926056,6.0308,132.66,132.61,6.0327]
[1719005926263,9.57,132.65,132.62,0.17]
[1719005927144,9.57,132.64,132.62,0.17]
[1719005929468,6.0308,132.66,132.62,0.17]
[1719005929672,9.57,132.65,132.62,0.17]
[1719005930551,6.0308,132.66,132.62,0.17]
[1719005930903,9.57,132.65,132.62,0.34]
[1719005931046,15.6008,132.66,132.62,0.34]
[1719005931550,9.57,132.65,132.62,0.34]
[1719005932344,9.57,132.66,132.62,0.34]
[1719005932545,15.17932068,132.67,132.61,0.34]
[1719005932745,15.17932068,132.67,132.63,6.0315]
[1719005932746,24.74932068,132.67,132.63,6.0315]
[1719005932945,9.57,132.66,132.64,0.17]
[1719005937692,6.0297,132.68,132.64,0.17]
[1719005937898,9.57,132.66,132.64,0.17]
[1719005940194,9.57,132.67,132.64,0.17]
[1719005940768,9.57,132.67,132.64,6.2013]
[1719005941068,6.0297,132.68,132.64,6.2013]
[1719005941372,9.57,132.67,132.64,6.2013]
[1719005943172,6.0296,132.68,132.64,6.2013]
[1719005943369,9.57,132.67,132.64,6.2013]
[1719005944995,9.57,132.67,132.64,0.17]
[1719005945682,15.5996,132.68,132.64,0.17]
[1719005947280,9.57,132.67,132.64,0.17]
[1719005948870,6.0296,132.68,132.64,6.2013]
[1719005949094,9.57,132.67,132.64,6.2013]
[1719005950299,6.0296,132.68,132.64,0.17]
[1719005950603,9.57,132.67,132.64,0.17]
[1719005951702,6.0296,132.68,132.64,0.17]
[1719005951874,9.57,132.67,132.64,0.17]
[1719005952883,6.0296,132.68,132.64,6.2013]
[1719005953698,9.57,132.67,132.64,6.2013]
[1719005955798,6.0293,132.69,132.64,6.2013]
[1719005956099,9.57,132.68,132.64,6.2013]
[1719005956292,9.57,132.67,132.64,6.2013]
[1719005956803,6.0293,132.69,132.64,6.2013]
[1719005957104,9.57,132.67,132.64,6.2013]
[1719005957898,6.0287,132.7,132.65,6.0308]
[1719005958115,9.57,132.68,132.65,6.0308]
[1719005962111,6.029,132.69,132.65,6.0308]
[1719005962415,9.57,132.68,132.65,6.0308]
[1719005963602,23.17153932,132.68,132.65,6.0308]
[1719005963994,23.17153932,132.68,132.66,15.8911]
[1719005964194,13.60153932,132.68,132.67,0.34]
[1719005964393,13.60046856,132.69,132.67,6.3699]
[1719005964587,9.57,132.71,132.67,6.3699]
[1719005965105,9.57,132.7,132.67,6.3699]
[1719005966887,9.57,132.7,132.68,6.0295]
[1719005967297,23.17046856,132.7,132.67,6.3697]
[1719005967495,9.57,132.7,132.67,6.3697]
[1719005967699,13.60000953,132.71,132.67,0.34]
[1719005968014,13.5999965,132.7,132.67,0.34]
[1719005968508,13.5999965,132.69,132.68,6.0295]
[1719005968694,13.5999965,132.7,132.68,6.3695]
[1719005968896,13.5999965,132.69,132.68,6.1995]
[1719005969094,13.5999965,132.7,132.68,6.3695]
[1719005969295,13.5999965,132.69,132.68,6.1995]
[1719005969518,13.5999965,132.69,132.68,6.3695]
[1719005970714,13.60000237,132.69,132.68,6.3695]
[1719005975803,9.57,132.73,132.71,6.028]
[1719005977490,9.57,132.74,132.71,6.028]
[1719005979925,9.57,132.74,132.72,6.0276]
[1719005981422,13.59347254,132.76,132.7,45.72]
[1719005981627,13.59347254,132.78,132.75,6.0263]
[1719005981801,9.57,132.76,132.75,6.0263]
[1719005982129,9.57,132.76,132.75,6.1963]
[1719005982620,9.57,132.76,132.75,0.17]
[1719005983626,9.57,132.76,132.75,6.1963]
[1719005984119,9.57,132.76,132.75,6.0263]
[1719005984322,9.57,132.76,132.71,46.9293]
[1719005984323,9.57,132.76,132.74,6.0267]
[1719005984512,13.59130938,132.78,132.73,0.17]
[1719005984714,9.57,132.78,132.76,6.0257]
[1719005985110,9.57,132.77,132.76,6.0257]
[1719005985508,6.8944967,132.8,132.76,6.0257]
[1719005985509,9.57,132.78,132.76,6.0257]
[1719005988113,0.8703967,132.8,132.76,6.0257]
[1719005988423,9.57,132.78,132.76,6.0257]
[1719005988832,0.8703967,132.8,132.76,6.0257]
[1719005989004,9.57,132.78,132.76,6.0257]
[1719005990114,9.57,132.78,132.73,15.4073]
[1719005990115,0.8703967,132.8,132.77,0.17]
[1719005990317,10.4403967,132.8,132.77,0.17]
[1719005991030,0.8703967,132.8,132.78,6.0248]
[1719005997113,0.8703967,132.8,132.79,6.0245]
[1719005997942,0.8703967,132.8,132.79,6.1945]
[1719005998839,0.8703967,132.8,132.79,6.3645]
[1719005999225,0.8703967,132.8,132.79,37.2506]
[1719005999567,9.57,132.85,132.83,6.0227]
[1719005999914,9.57,132.85,132.84,6.0222]
[1719006000113,6.1131,132.9,132.84,6.1922]
[1719006000331,20.0,132.89,132.84,6.0222]
[1719006000640,20.0,132.89,132.84,6.0221]
[1719006000828,9.57,132.85,132.8,60.4392]
[1719006001145,6.0206,132.88,132.83,6.0225]
[1719006001325,9.57,132.85,132.83,6.0223]
[1719006001514,6.0209,132.87,132.83,6.0226]
[1719006001714,9.57,132.85,132.83,6.0226]
[1719006001932,9.57,132.85,132.84,6.0222]
[1719006002143,9.57,132.85,132.84,0.17]
[1719006002341,6.0207,132.88,132.84,6.0221]
[1719006002540,9.57,132.85,132.84,6.0221]
[1719006002746,20.0,132.89,132.84,6.0221]
[1719006003051,9.57,132.85,132.84,6.0221]
[1719006003263,20.0,132.89,132.85,6.0217]
[1719006003445,1.0076,132.91,132.85,6.0217]
[1719006003446,9.57,132.87,132.85,6.0217]
[1719006003746,9.57,132.87,132.86,0.17]
[1719006004347,6.0192,132.91,132.86,6.1913]
[1719006004534,20.0,132.92,132.87,0.17]
[1719006004535,20.0,132.9,132.87,0.17]
[1719006004728,9.07,132.9,132.89,6.02]
[1719006004923,9.57,132.9,132.89,6.19]
[1719006005246,9.57,132.9,132.89,0.17]
[1719006005427,16.4585967,132.93,132.89,0.17]
[1719006005428,0.8703967,132.93,132.89,0.17]
[1719006005628,0.8703967,132.93,132.91,6.019]
[1719006005986,10.4403967,132.93,132.91,6.019]
[1719006006245,10.4403967,132.93,132.9,6.1893]
[1719006006440,10.4403967,132.93,132.91,0.17]
[1719006006441,9.57,132.92,132.91,0.17]
[1719006007342,10.4403967,132.93,132.91,6.189]
[1719006007850,9.57,132.92,132.9,6.1893]
[1719006008234,9.57,132.91,132.9,0.17]
[1719006009119,9.57,132.91,132.9,6.1895]
[1719006009856,0.8703967,132.93,132.9,6.3595]
[1719006010054,9.57,132.92,132.9,6.1895]
[1719006010556,0.8703967,132.93,132.9,6.1895]
[1719006010738,9.57,132.92,132.9,6.1895]
[1719006011552,0.8703967,132.93,132.91,6.0191]
[1719006011762,10.4403967,132.93,132.92,0.17]
[1719006013476,0.8703967,132.93,132.92,0.17]
[1719006013959,10.4403967,132.93,132.92,0.17]
[1719006014751,0.8703967,132.93,132.92,0.17]
[1719006014922,10.4403967,132.93,132.92,0.17]
[1719006015547,0.8703967,132.93,132.92,0.17]
[1719006015751,10.4403967,132.93,132.92,0.17]
[1719006015928,0.8703967,132.93,132.92,0.17]
[1719006016853,0.8703967,132.93,132.92,6.3586]
[1719006018224,6.97923146,133.03,132.93,15.0453]
[1719006018425,9.57,132.98,132.96,6.0164]
[1719006018654,9.57,132.98,132.95,6.017]
[1719006018833,9.57,132.97,132.96,0.34]
[1719006020455,9.57,132.97,132.96,11.64342233]
[1719006020945,9.57,132.98,132.96,11.64342233]
[1719006021551,1.0076,133.03,132.97,11.30342233]
[1719006021855,9.57,132.99,132.96,11.64307608]
[1719006022256,9.57,132.99,132.96,6.3566]
[1719006022553,9.57,132.99,132.97,11.30308057]
[1719006023140,9.57,132.98,132.97,11.30308057]
[1719006023360,9.57,132.98,132.97,0.17]
[1719006023733,9.57,132.98,132.97,6.1863]
[1719006025354,9.57,133.02,132.99,6.0154]
[1719006025651,9.57,133.02,132.97,0.34]
[1719006025652,9.57,133.02,132.98,11.3022914]
[1719006025857,9.57,133.02,132.99,6.1854]
[1719006026037,9.57,133.01,132.99,6.1854]
[1719006029642,26.0137,133.03,132.99,6.1854]
[1719006029859,9.57,133.01,132.99,6.1854]
[1719006030859,20.0,133.03,133.0,6.185]
[1719006031055,9.57,133.02,133.0,6.185]
[1719006031456,20.0,133.04,133.01,6.0144]
[1719006031457,9.57,133.03,133.01,6.0144]
[1719006031856,9.57,133.03,133.0,6.1849]
[1719006032057,20.0,133.04,133.01,0.17]
[1719006032236,9.57,133.03,133.01,0.17]
[1719006032862,9.57,133.03,133.01,6.1845]
[1719006033060,20.0,133.04,133.01,6.1845]
[1719006033242,6.8822967,133.07,133.02,6.014]
[1719006033438,9.57,133.05,133.02,6.014]
[1719006034046,20.0,133.06,133.02,6.014]
[1719006034249,29.57,133.06,133.03,6.3533]
[1719006034453,29.57,133.06,133.03,5.86581266]
[1719006034658,29.57,133.06,133.04,0.17]
[1719006035150,9.57,133.06,133.04,0.17]
[1719006037380,9.57,133.06,132.98,31.3088]
[1719006037676,9.57,133.05,133.01,6.0145]
[1719006038337,9.57,133.04,133.01,6.0145]
[1719006039371,6.0124,133.06,133.01,6.0145]
[1719006039671,9.57,133.04,133.01,6.0145]
[1719006040748,6.0124,133.06,133.01,6.0145]
[1719006041071,6.013,133.05,133.0,6.355]
[1719006042047,5.013,133.05,133.0,6.355]
[1719006042246,9.57,133.02,133.0,6.185]
[1719006042469,9.57,133.02,132.99,6.0152]
[1719006042977,9.57,133.04,133.01,6.0145]
[1719006043778,9.57,133.05,133.02,0.34]
[1719006044085,9.57,133.05,133.02,6.3539]
[1719006044453,9.57,133.04,133.02,6.3539]
[1719006046882,6.8824967,133.07,133.02,6.3539]
[1719006046883,9.57,133.05,133.02,6.3539]
[1719006047077,6.0127,133.05,133.01,6.0145]
[1719006047381,9.57,133.04,133.01,6.0145]
[1719006052179,9.57,133.03,133.01,6.0145]
[1719006055462,7.8902,133.06,133.01,6.0145]
[1719006055673,9.57,133.04,133.01,6.0145]
[1719006055864,0.8703967,133.07,133.02,0.17]
[1719006056070,9.57,133.05,133.0,0.17]
[1719006056267,9.57,133.05,133.0,0.34]
[1719006056676,9.57,133.05,133.02,6.0139]
[1719006057190,10.4403967,133.07,133.04,6.0132]
[1719006058275,10.4403967,133.07,133.03,0.34]
[1719006058276,0.8703967,133.07,133.05,6.0126]
[1719006058502,0.8703967,133.07,133.05,6.1826]
[1719006058684,0.8703967,133.07,133.05,6.0126]
[1719006061097,0.8703967,133.07,133.04,6.013]
[1719006061267,0.8703967,133.07,133.05,0.34]
[1719006062593,10.4403967,133.07,133.05,0.34]
[1719006065365,9.57,133.06,133.03,21.8308]
[1719006067272,9.57,133.06,133.04,0.17]
[1719006067472,9.57,133.05,133.03,15.8174]
[1719006067674,0.8703967,133.07,133.01,6.0144]
[1719006067675,9.57,133.04,133.01,6.0144]
[1719006067883,9.57,133.03,133.0,6.0148]
[1719006068085,39.1503967,133.07,132.98,61.7729]
[1719006068086,9.57,133.02,133.01,6.0145]
[1719006068393,9.57,133.03,133.01,6.0145]
[1719006069297,39.1503967,133.07,132.98,76.8118]
[1719006069298,6.8823967,133.07,133.02,6.0141]
[1719006069474,9.57,133.04,133.02,6.0141]
[1719006070483,6.0123,133.06,133.02,6.0141]
[1719006070773,9.57,133.03,133.01,6.0143]
[1719006070994,9.57,133.02,133.0,6.1848]
[1719006073081,9.57,133.03,133.0,6.1848]
[1719006076804,9.57,133.03,133.01,6.0145]
[1719006077094,9.57,133.03,133.0,6.0148]
[1719006077400,9.57,133.02,133.0,6.0148]
[1719006077983,6.0132,133.04,133.0,6.0148]
[1719006078182,9.57,133.02,133.0,6.0148]
[1719006080077,9.57,133.02,133.01,6.0145]
[1719006080382,9.57,133.03,133.01,6.0145]
[1719006082687,7.8902,133.06,133.01,6.0145]
[1719006082889,9.57,133.03,133.01,6.0145]
[1719006083087,9.57,133.03,133.02,6.0141]
[1719006083700,9.57,133.03,132.99,0.17]
[1719006083875,9.57,133.03,133.01,6.0144]
[1719006084302,20.0,133.05,133.01,6.0144]
[1719006084493,9.57,133.02,133.01,6.0144]
[1719006086015,20.0,133.05,133.02,6.014]
[1719006086308,9.57,133.03,133.02,6.014]
[1719006092993,9.57,133.03,133.01,6.0145]
[1719006093407,9.57,133.02,133.01,6.0145]
[1719006095187,20.0,133.06,133.02,6.0137]
[1719006095497,9.57,133.03,133.02,6.0137]
[1719006096310,20.0,133.06,133.02,6.0137]
[1719006096618,9.57,133.03,133.02,6.0137]
[1719006098388,9.57,133.03,133.01,6.0143]
[1719006098598,26.0124,133.06,133.01,6.0143]
[1719006098820,9.57,133.03,133.01,6.0143]
[1719006100087,9.57,133.02,133.01,6.0143]
[1719006102110,20.0,133.06,132.98,15.2654]
[1719006102300,6.0138,133.03,132.98,21.281]
[1719006102610,9.57,133.0,132.98,21.281]
[1719006102803,9.57,133.0,132.96,6.2515]
[1719006103292,9.57,133.0,132.98,6.0158]
[1719006103496,6.014,133.03,132.98,6.0158]
[1719006103801,9.57,133.0,132.98,6.0158]
[1719006104001,20.0,133.02,132.95,15.9399]
[1719006104002,9.57,132.99,132.96,6.0164]
[1719006104212,9.57,132.99,132.95,15.9399]
[1719006104514,9.57,132.99,132.97,6.0163]
[1719006112213,9.57,132.99,132.96,6.0166]
[1719006113219,9.57,132.99,132.97,6.0163]
[1719006115324,9.57,132.99,132.96,6.0166]
[1719006118101,9.57,132.99,132.97,6.0163]
[1719006120129,9.57,132.99,132.96,6.0166]
[1719006120510,6.0145,133.01,132.97,6.0163]
[1719006120920,9.57,132.99,132.97,6.0163]
[1719006121841,9.57,132.99,132.96,6.0166]
[1719006124239,9.57,132.99,132.95,6.0171]
[1719006124525,9.57,132.98,132.93,6.5395]
[1719006124730,9.57,132.98,132.94,6.0175]
[1719006125027,9.57,132.98,132.95,6.0172]
[1719006126047,9.57,132.97,132.95,6.0172]
[1719006126533,9.57,132.97,132.94,6.0175]
[1719006127110,9.57,132.97,132.95,6.0172]
[1719006128245,9.57,132.97,132.94,6.0175]
[1719006132946,7.8924,133.01,132.96,6.0168]
[1719006133147,9.57,132.98,132.93,15.0445]
[1719006134744,9.57,132.98,132.95,6.0171]
[1719006135124,9.57,132.98,132.96,6.0166]
[1719006135647,9.57,132.98,132.95,6.017]
[1719006135841,9.57,132.97,132.95,6.017]
[1719006137944,9.57,132.96,132.92,6.3584]
[1719006138147,9.57,132.97,132.93,6.3581]
[1719006138345,9.57,132.97,132.94,6.0177]
[1719006139131,9.57,132.97,132.95,6.0172]
[1719006139628,1.8777,133.01,132.93,0.34]
[1719006139954,1.8777,133.01,132.94,0.17]
[1719006140138,9.57,132.99,132.93,9.57]
[1719006140329,9.57,132.99,132.94,0.34]
[1719006140531,7.8925,133.01,132.96,6.0166]
[1719006140729,9.57,132.99,132.96,6.0166]
[1719006143646,7.8925,133.01,132.96,6.0166]
[1719006143854,9.57,132.99,132.96,6.0166]
[1719006144358,9.57,132.97,132.94,6.1877]
[1719006144541,9.57,132.98,132.95,6.0172]
[1719006146362,15.5855,132.99,132.95,6.0172]
[1719006146564,9.57,132.99,132.95,6.0172]
[1719006148247,26.0152,133.0,132.95,6.0172]
[1719006148452,9.57,132.98,132.95,6.0172]
[1719006148766,26.0152,133.0,132.95,6.0172]
[1719006148939,9.57,132.98,132.95,6.0172]
[1719006149145,26.0152,133.0,132.95,6.0172]
[1719006149351,9.57,132.99,132.95,6.0172]
[1719006149775,9.57,132.99,132.96,6.0168]
[1719006149942,26.0152,133.0,132.94,0.17]
[1719006150246,9.57,132.99,132.95,6.017]
[1719006150447,26.0152,133.0,132.95,6.017]
[1719006150862,9.57,132.99,132.95,6.017]
[1719006153276,26.0152,133.0,132.95,6.017]
[1719006153444,9.57,132.98,132.95,6.017]
[1719006157078,26.0152,133.0,132.95,6.017]
[1719006157372,9.57,132.98,132.95,6.017]
[1719006159576,26.0152,133.0,132.95,6.017]
[1719006159872,6.0172,132.95,132.91,16.1107]
[1719006160086,58.28,133.0,132.92,0.17]
[1719006160273,9.57,132.96,132.92,0.17]
[1719006160782,9.57,132.96,132.93,6.0181]
[1719006164262,6.0161,132.98,132.93,6.0181]
[1719006164458,9.57,132.96,132.93,6.0181]
[1719006168378,9.57,132.94,132.91,22.1294]
[1719006168579,20.0,132.93,132.91,22.1294]
[1719006168772,20.0,132.93,132.92,6.0186]
[1719006169667,20.0,132.93,132.92,6.1886]
[1719006170667,20.0,132.93,132.91,22.1297]
[1719006170991,20.0,132.95,132.92,6.0186]
[1719006171376,29.57,132.96,132.92,6.0186]
[1719006171672,35.5869,132.96,132.91,16.1107]
[1719006172077,35.5869,132.96,132.91,22.1296]
[1719006173001,20.0,132.96,132.92,6.0185]
[1719006173177,29.57,132.96,132.92,6.0185]
[1719006173384,9.57,132.95,132.92,6.0185]
[1719006173584,29.57,132.96,132.92,6.0185]
[1719006173883,35.5868,132.96,132.92,6.0185]
[1719006175094,35.5868,132.96,132.91,22.1296]
[1719006175392,26.0168,132.96,132.91,22.1296]
[1719006175583,29.57,132.96,132.92,6.0185]
[1719006176477,35.5868,132.96,132.92,6.0185]
[1719006176671,26.0168,132.96,132.92,6.0185]
[1719006176870,35.5868,132.96,132.92,6.0185]
[1719006177287,20.0,132.96,132.92,6.0185]
[1719006177488,29.57,132.96,132.92,6.0185]
[1719006177671,20.0,132.96,132.92,6.0185]
[1719006177872,29.57,132.96,132.92,6.0185]
[1719006178189,35.5868,132.96,132.92,6.0185]
[1719006178566,9.57,132.95,132.92,6.0185]
[1719006178766,20.0,132.96,132.92,6.0185]
[1719006179080,9.57,132.95,132.92,6.0185]
[1719006179790,35.5869,132.96,132.92,6.0185]
[1719006182592,35.5869,132.96,132.91,22.1295]
[1719006183290,6.0177,132.94,132.87,6.1212]
[1719006183479,29.57,132.93,132.88,16.0516]
[1719006183680,20.0,132.96,132.9,6.0191]
[1719006183681,6.0175,132.95,132.9,6.0191]
[1719006183887,29.57,132.94,132.9,6.0191]
[1719006186894,20.0,132.94,132.9,6.0191]
[1719006187082,29.57,132.94,132.9,6.0191]
[1719006189903,20.0,132.94,132.9,6.0191]
[1719006190198,29.57,132.94,132.91,6.019]
[1719006194393,35.5879,132.94,132.9,6.0195]
[1719006194579,9.57,132.93,132.9,6.0195]
[1719006194897,20.0,132.94,132.91,6.019]
[1719006195108,9.57,132.93,132.9,6.0194]
[1719006195483,20.0,132.95,132.91,6.019]
[1719006195685,29.57,132.95,132.91,6.019]
[1719006196280,20.0,132.95,132.91,6.019]
[1719006196481,29.57,132.95,132.91,6.019]
[1719006201139,20.0,132.95,132.91,6.019]
[1719006201306,29.57,132.95,132.91,6.019]
[1719006205884,29.57,132.95,132.89,0.17]
[1719006205885,13.56797678,132.94,132.92,6.0185]
[1719006206291,29.57,132.95,132.92,6.0185]
[1719006206896,29.57,132.95,132.93,6.0181]
[1719006207101,20.0,132.95,132.93,6.0181]
[1719006207492,20.0,132.96,132.93,6.0181]
[1719006207703,9.57,132.95,132.93,6.0181]
[1719006209490,9.57,132.95,132.92,6.0184]
[1719006210304,20.0,132.96,132.93,6.0181]
[1719006210489,29.57,132.96,132.93,6.0181]
[1719006210917,29.57,132.96,132.92,6.0184]
[1719006212200,29.57,132.96,132.91,6.019]
[1719006212201,9.57,132.94,132.91,6.019]
[1719006212506,20.0,132.93,132.9,6.0193]
[1719006212908,20.0,132.93,132.88,40.6717]
[1719006213107,9.57,132.94,132.91,6.019]
[1719006213298,20.0,132.93,132.91,6.019]
[1719006216139,20.0,132.93,132.9,6.0193]
[1719006220225,20.0,132.93,132.91,6.019]
[1719006222620,29.57,132.94,132.91,6.019]
[1719006224522,20.0,132.94,132.91,6.019]
[1719006224727,29.57,132.94,132.91,6.019]
[1719006225226,20.0,132.94,132.92,6.0186]
[1719006225431,29.57,132.95,132.92,6.0186]
[1719006227409,29.57,132.95,132.91,6.0189]
[1719006227614,20.0,132.95,132.91,6.0189]
[1719006227817,29.57,132.95,132.91,6.0189]
[1719006230835,20.0,132.95,132.91,6.0189]
[1719006231039,29.57,132.95,132.91,6.0189]
[1719006234038,20.0,132.95,132.91,6.0189]
[1719006234225,22.90509221,133.0,132.93,6.0181]
[1719006234433,9.57,132.97,132.92,16.2788]
[1719006234646,9.57,132.97,132.93,0.17]
[1719006235141,9.57,132.97,132.93,6.188]
[1719006239845,9.57,132.96,132.93,6.188]
[1719006240224,9.57,132.95,132.92,6.0184]
[1719006240521,9.57,132.93,132.89,6.0199]
[1719006240723,9.57,132.92,132.89,6.0199]
[1719006240928,20.0,132.91,132.87,21.8391]
[1719006241348,9.57,132.89,132.87,21.8391]
[1719006241733,9.57,132.89,132.87,6.0206]
[1719006242544,9.57,132.88,132.87,6.0206]
[1719006244451,9.57,132.89,132.87,6.0206]
[1719006245653,26.0191,132.91,132.87,6.0206]
[1719006245950,9.57,132.89,132.87,6.0206]
[1719006246729,26.0191,132.91,132.87,6.0206]
[1719006246924,9.57,132.89,132.87,6.0206]
[1719006247125,26.0191,132.91,132.87,6.0206]
[1719006247326,26.0191,132.91,132.86,6.0211]
[1719006247627,9.57,132.9,132.86,6.0211]
[1719006247853,26.0191,132.91,132.86,6.0211]
[1719006247854,20.0,132.89,132.86,6.0211]
[1719006248729,29.57,132.9,132.86,6.0211]
[1719006249131,9.57,132.89,132.86,6.0211]
[1719006249448,29.57,132.9,132.86,6.0211]
[1719006249633,20.0,132.9,132.86,6.0211]
[1719006249833,29.57,132.9,132.86,6.0211]
[1719006250351,20.0,132.9,132.86,6.0211]
[1719006250731,29.57,132.9,132.86,6.0211]
[1719006250927,9.57,132.88,132.84,15.8185]
[1719006251132,20.0,132.87,132.84,21.8404]
[1719006252737,20.0,132.88,132.84,21.8404]
[1719006253052,29.57,132.88,132.84,21.8404]
[1719006253554,20.0,132.88,132.84,21.8404]
[1719006253758,29.57,132.88,132.84,21.8404]
[1719006254531,20.0,132.88,132.84,21.8404]
[1719006254731,29.57,132.88,132.84,21.8404]
[1719006255557,20.0,132.88,132.84,21.8404]
[1719006256355,29.57,132.88,132.84,15.8185]
[1719006257558,29.57,132.88,132.84,21.8407]
[1719006258461,20.0,132.88,132.84,15.8185]
[1719006258646,29.57,132.88,132.84,15.8185]
[1719006259755,35.5905,132.88,132.84,15.8185]
[1719006261188,26.0205,132.88,132.84,15.8185]
[1719006261541,20.0,132.88,132.84,15.8185]
[1719006261868,26.0205,132.88,132.84,15.8185]
[1719006263162,35.5905,132.88,132.84,15.8185]
[1719006268370,26.0205,132.88,132.84,15.8185]
[1719006268865,35.5905,132.88,132.84,15.8185]
[1719006270443,29.57,132.88,132.84,21.8407]
[1719006272569,20.0,132.88,132.84,21.8407]
[1719006272760,29.57,132.88,132.84,21.8407]
[1719006274163,35.5905,132.88,132.84,15.8185]
[1719006275153,26.0205,132.88,132.84,15.8185]